bitfinex/quotes_SOLUSD_20220105
["timestamp","ask_amount","ask_price","bid_price","bid_amount"]
[1641395670349,28.96342269,168.8,168.64,5.04876338]
[1641395670549,28.96342269,168.8,168.65,24.9696]
[1641395670752,28.96342269,168.8,168.66,0.06]
[1641395670950,28.96342269,168.8,168.66,10.87455373]
[1641395671349,28.96342269,168.8,168.67,1.47846154]
[1641395671550,29.22342269,168.8,168.67,1.47846154]
[1641395671948,23.1233,168.79,168.67,26.34256154]
[1641395672152,2.40052269,168.78,168.67,26.34256154]
[1641395672349,2.90052269,168.78,168.68,1.47846154]
[1641395672749,3.16052269,168.78,168.68,1.47846154]
[1641395676253,3.16052269,168.78,168.68,1.73846154]
[1641395678459,3.16052269,168.78,168.68,0.26]
[1641395678957,3.16052269,168.78,168.67,24.8641]
[1641395681862,3.16052269,168.78,168.67,25.1241]
[1641395685667,3.16052269,168.78,168.67,26.60256154]
[1641395689892,3.16052269,168.78,168.67,25.1241]
[1641395690094,3.16052269,168.78,168.67,24.8641]
[1641395690594,3.16052269,168.78,168.62,24.98746154]
[1641395690798,3.16052269,168.78,168.62,48.34566154]
[1641395690999,10.12052269,168.78,168.62,46.8672]
[1641395691403,100.8672,168.77,168.61,77.6867]
[1641395691600,101.1272,168.77,168.61,77.6867]
[1641395691799,101.6272,168.77,168.61,77.6867]
[1641395692298,101.6272,168.77,168.61,77.9467]
[1641395693704,101.6272,168.77,168.61,77.6867]
[1641395694206,101.6272,168.77,168.59,10.23846154]
[1641395695005,101.6272,168.77,168.6,22.5254]
[1641395695808,101.6272,168.77,168.6,22.7854]
[1641395696006,101.6272,168.77,168.6,22.5254]
[1641395696607,101.6272,168.77,168.6,24.00386154]
[1641395698009,5.0,168.61,168.6,24.00386154]
[1641395698212,5.0,168.61,168.6,1.47846154]
[1641395698611,5.0,168.61,168.6,1.73846154]
[1641395698811,5.0,168.61,168.6,31.73846154]
[1641395699817,0.0001,168.61,168.6,75.73846154]
[1641395700020,22.6085,168.75,168.61,60.0]
[1641395700220,22.6085,168.75,168.61,84.1431]
[1641395700420,22.6085,168.75,168.62,20.02651495]
[1641395700621,73.964,168.76,168.62,20.02651495]
[1641395700817,73.964,168.76,168.63,1.47846154]
[1641395701039,32.53024355,168.75,168.64,0.06]
[1641395701440,32.53024355,168.75,168.65,1.47846154]
[1641395701641,33.03024355,168.75,168.65,1.47846154]
[1641395701840,32.53024355,168.75,168.65,1.47846154]
[1641395702241,32.53024355,168.75,168.65,1.73846154]
[1641395702640,32.79024355,168.75,168.65,1.73846154]
[1641395702841,33.29024355,168.75,168.65,1.73846154]
[1641395703044,73.0,168.74,168.63,21.24206154]
[1641395703441,73.5,168.74,168.64,1.47846154]
[1641395703841,73.26,168.74,168.64,1.47846154]
[1641395704442,73.26,168.74,168.64,1.73846154]
[1641395705544,73.0,168.74,168.64,1.73846154]
[1641395706344,23.152,168.76,168.64,1.73846154]
[1641395706543,76.6449,168.77,168.65,1.47846154]
[1641395706744,22.7976,168.83,168.66,0.06]
[1641395706946,23.3511,168.82,168.66,23.3029]
[1641395707146,23.3511,168.82,168.67,1.47846154]
[1641395707350,23.8511,168.82,168.67,3.38240768]
[1641395707544,2.16937461,168.81,168.67,3.38240768]
[1641395707745,2.16937461,168.81,168.68,1.53846154]
[1641395708044,77.2367,168.83,168.68,10.76855373]
[1641395708245,29.99768405,168.84,168.69,1.47846154]
[1641395708445,29.99768405,168.84,168.7,0.06]
[1641395708849,29.99768405,168.84,168.7,1.53846154]
[1641395709047,29.99768405,168.84,168.7,10.87455373]
[1641395709851,29.99768405,168.84,168.71,8.8854]
[1641395711554,2.27800046,168.88,168.72,8.9447]
[1641395711953,2.77800046,168.88,168.72,8.9447]
[1641395712353,3.03800046,168.88,168.72,8.9447]
[1641395712553,24.21165756,168.87,168.72,8.9447]
[1641395712956,24.47165756,168.87,168.72,8.9447]
[1641395713156,24.97165756,168.87,168.71,86.2113]
[1641395714060,24.97165756,168.87,168.71,86.4713]
[1641395714664,24.97165756,168.87,168.71,95.80739219]
[1641395715466,24.97165756,168.87,168.71,86.92199219]
[1641395715666,24.97165756,168.87,168.72,8.8848]
[1641395715865,24.97165756,168.87,168.72,15.9488]
[1641395716065,0.5,168.87,168.72,16.40009219]
[1641395716366,2.27800046,168.88,168.72,115.98051495]
[1641395716567,2.27800046,168.88,168.76,8.8827]
[1641395716766,2.27800046,168.88,168.72,121.51257124]
[1641395716969,2.27800046,168.88,168.77,12.54635153]
[1641395717169,2.27800046,168.88,168.77,18.44835153]
[1641395717767,2.27800046,168.88,168.77,27.59045153]
[1641395718170,2.27800046,168.88,168.77,22.59045153]
[1641395718567,2.27800046,168.88,168.77,13.70835153]
[1641395719467,2.53800046,168.88,168.77,13.70835153]
[1641395719968,2.53800046,168.88,168.77,6.162]
[1641395720470,2.27800046,168.88,168.77,6.162]
[1641395720773,77.3648,168.89,168.77,6.162]
[1641395720972,77.8648,168.89,168.78,9.94989204]
[1641395721271,0.5,168.89,168.78,9.94989204]
[1641395721470,0.5,168.92,168.78,9.94989204]
[1641395721673,3.03340815,168.91,168.78,18.83109204]
[1641395721875,3.53340815,168.91,168.78,18.83109204]
[1641395722277,3.53340815,168.91,168.78,9.94989204]
[1641395723072,3.53340815,168.91,168.78,4.94989204]
[1641395723877,3.53340815,168.91,168.79,8.8807]
[1641395725678,3.53340815,168.91,168.8,8.8799]
[1641395725880,3.53340815,168.91,168.8,10.81455373]
[1641395726096,3.03340815,168.91,168.8,9.33609219]
[1641395726481,3.03340815,168.91,168.79,23.5178]
[1641395727499,3.29340815,168.91,168.79,23.5178]
[1641395727697,3.79340815,168.91,168.79,23.5178]
[1641395727896,23.0795,168.9,168.79,23.5178]
[1641395728098,23.3395,168.9,168.79,18.5178]
[1641395728297,23.3395,168.9,168.79,18.7778]
[1641395728497,24.16964924,168.89,168.79,18.7778]
[1641395728898,24.42964924,168.89,168.79,18.7778]
[1641395729097,24.16964924,168.89,168.79,18.7778]
[1641395729298,24.16964924,168.89,168.79,20.25626154]
[1641395729499,23.0795,168.9,168.79,20.25626154]
[1641395729699,23.0795,168.9,168.79,29.59235373]
[1641395730300,3.03340815,168.91,168.79,29.59235373]
[1641395730503,31.92063454,168.91,168.79,29.59235373]
[1641395730900,56.25623454,168.91,168.79,29.59235373]
[1641395731102,56.25623454,168.91,168.79,28.11389219]
[1641395731603,56.25623454,168.91,168.79,18.5178]
[1641395731800,57.01623454,168.91,168.79,18.5178]
[1641395733101,56.51623454,168.91,168.79,14.99626154]
[1641395733501,56.51623454,168.91,168.79,13.5178]
[1641395733700,57.01623454,168.91,168.79,0.26]
[1641395733900,57.07623454,168.91,168.79,0.26]
[1641395734100,57.07623454,168.91,168.77,9.0411]
[1641395734702,57.07623454,168.91,168.75,1.47846154]
[1641395734903,61.85223454,168.91,168.73,23.9333]
[1641395735306,61.85223454,168.91,168.71,436.60168075]
[1641395735504,0.06,168.89,168.71,436.60168075]
[1641395736104,23.418,168.89,168.71,436.60168075]
[1641395736304,23.418,168.89,168.71,359.27578075]
[1641395736505,24.178,168.89,168.71,359.27578075]
[1641395736908,24.178,168.89,168.71,9.59609219]
[1641395738110,5.0,168.73,168.71,9.59609219]
[1641395738910,5.0,168.73,168.71,20.22651495]
[1641395739909,5.0,168.73,168.71,29.11151495]
[1641395742419,5.0,168.73,168.71,27.63305341]
[1641395743221,5.0,168.73,168.71,22.63305341]
[1641395743422,5.0,168.73,168.71,18.29696122]
[1641395745123,5.0,168.73,168.71,9.41196122]
[1641395745323,3.82,168.73,168.71,0.26]
[1641395745526,3.82,168.73,168.69,17.7951]
[1641395745723,3.82,168.73,168.69,8.9093]
[1641395746447,3.82,168.73,168.69,18.0553]
[1641395748548,3.82,168.73,168.7,8.8856]
[1641395748948,3.82,168.73,168.69,8.9093]
[1641395749350,3.82,168.73,168.69,10.38776154]
[1641395749547,3.82,168.73,168.69,8.9093]
[1641395750549,3.82,168.73,168.69,10.64776154]
[1641395750750,3.82,168.73,168.69,19.53376154]
[1641395751159,3.82,168.73,168.69,19.62274262]
[1641395751347,3.82,168.73,168.69,28.77470384]
[1641395751751,3.82,168.73,168.7,8.8856]
[1641395751948,3.82,168.73,168.71,1.41034171]
[1641395754154,3.82,168.73,168.71,10.29534171]
[1641395754956,1.6332,168.73,168.71,10.29534171]
[1641395756360,1.6332,168.73,168.71,10.55534171]
[1641395756560,0.4532,168.73,168.71,10.55534171]
[1641395757361,2.33023446,168.8,168.71,10.55534171]
[1641395757766,2.33023446,168.8,168.71,10.10214171]
[1641395758564,2.33023446,168.8,168.71,11.58060325]
[1641395759364,2.33023446,168.8,168.72,8.8847]
[1641395760263,122.5811,168.84,168.72,8.8847]
[1641395760466,123.0811,168.84,168.73,8.8839]
[1641395760663,74.9828,168.84,168.72,19.60540384]
[1641395760864,74.4828,168.84,168.74,1.47846154]
[1641395761167,74.4828,168.84,168.74,10.45344262]
[1641395761364,74.4828,168.84,168.74,19.86540384]
[1641395761563,3.01085552,168.85,168.75,1.47846154]
[1641395761765,3.01085552,168.85,168.75,5.20198015]
[1641395762164,3.01085552,168.85,168.76,1.47846154]
[1641395762762,3.01085552,168.85,168.76,10.36106154]
[1641395763964,2.51085552,168.85,168.77,0.36849228]
[1641395764365,2.77085552,168.85,168.77,0.36849228]
[1641395766969,97.6555,168.89,168.77,0.36849228]
[1641395767374,97.6555,168.89,168.78,1.47846154]
[1641395767769,47.9676,168.94,168.79,8.97498108]
[1641395767970,77.0833,168.93,168.8,0.95714171]
[1641395768172,2.40626289,168.92,168.8,2.43560325]
[1641395768368,2.90626289,168.92,168.8,2.43560325]
[1641395768569,26.43036289,168.92,168.8,2.43560325]
[1641395769771,26.43036289,168.92,168.81,8.8801]
[1641395770574,26.43036289,168.92,168.79,24.1994]
[1641395770775,26.69036289,168.92,168.79,24.1994]
[1641395770973,26.69036289,168.92,168.79,0.26]
[1641395771173,26.69036289,168.92,168.78,74.5451]
[1641395771373,26.69036289,168.92,168.78,0.26]
[1641395771576,26.69036289,168.92,168.77,9.51029228]
[1641395771777,26.75036289,168.92,168.76,88.95]
[1641395771974,26.75036289,168.92,168.75,8.97498108]
[1641395771975,27.25036289,168.92,168.74,9.0206]
[1641395772774,27.25036289,168.92,168.75,0.37008198]
[1641395773374,27.25036289,168.92,168.77,3.45432898]
[1641395774576,27.25036289,168.92,168.74,9.0206]
[1641395774983,88.22882443,168.92,168.74,9.0206]
[1641395775183,88.22882443,168.92,168.67,88.95]
[1641395775381,107.85272443,168.92,168.67,90.42846154]
[1641395775579,107.85272443,168.92,168.7,4.69582961]
[1641395776181,109.5068618,168.92,168.7,4.69582961]
[1641395776785,108.02840026,168.92,168.7,4.69582961]
[1641395777884,115.14840026,168.92,168.7,13.58162961]
[1641395778285,115.14840026,168.92,168.7,6.17429115]
[1641395778886,115.14840026,168.92,168.71,8.8853]
[1641395779086,107.76840026,168.92,168.7,24.9131375]
[1641395779289,106.11426289,168.92,168.72,10.45344262]
[1641395779489,106.11426289,168.92,168.73,88.95]
[1641395779687,106.11426289,168.92,168.74,77.4135]
[1641395779910,106.11426289,168.92,168.75,0.41236065]
[1641395780109,106.11426289,168.92,168.75,6.27036065]
[1641395780311,106.11426289,168.92,168.75,26.48766854]
[1641395780510,106.11426289,168.92,168.76,1.47846154]
[1641395780711,106.37426289,168.92,168.76,1.47846154]
[1641395780910,106.37426289,168.92,168.77,8.8822]
[1641395781315,106.11426289,168.92,168.78,1.47846154]
[1641395781513,105.61426289,168.92,168.78,1.47846154]
[1641395782015,105.61426289,168.92,168.78,1.73846154]
[1641395782213,105.61426289,168.92,168.79,4.07567328]
[1641395782415,105.61426289,168.92,168.79,5.55413482]
[1641395783015,105.87426289,168.92,168.79,5.55413482]
[1641395783316,129.99269873,168.92,168.78,0.26]
[1641395783517,130.49269873,168.92,168.78,0.26]
[1641395783718,130.49269873,168.92,168.73,90.42846154]
[1641395783919,130.49269873,168.92,168.74,0.26]
[1641395784117,130.49269873,168.92,168.73,99.31236154]
[1641395784319,130.49269873,168.92,168.74,3.43808194]
[1641395784517,130.49269873,168.92,168.74,4.91654348]
[1641395786519,130.49269873,168.92,168.74,13.80034348]
[1641395788021,130.49269873,168.92,168.74,23.65538983]
[1641395788221,130.49269873,168.92,168.74,47.14508983]
[1641395788421,130.49269873,168.92,168.74,47.40508983]
[1641395789021,130.49269873,168.92,168.76,8.8823]
[1641395789425,130.49269873,168.92,168.77,1.47846154]
[1641395789624,106.37426289,168.92,168.77,1.47846154]
[1641395790324,106.11426289,168.92,168.77,6.52646154]
[1641395790524,106.11426289,168.92,168.78,1.24257838]
[1641395790724,106.11426289,168.92,168.78,2.72103992]
[1641395790928,105.61426289,168.92,168.79,1.47846154]
[1641395791829,105.61426289,168.92,168.8,8.8805]
[1641395792431,105.61426289,168.92,168.81,1.47846154]
[1641395793033,105.61426289,168.92,168.81,1.73846154]
[1641395793432,105.61426289,168.92,168.82,3.33394388]
[1641395794035,105.61426289,168.92,168.81,1.73846154]
[1641395794437,105.61426289,168.92,168.81,1.47846154]
[1641395794836,105.61426289,168.92,168.78,33.31556154]
[1641395795036,105.61426289,168.92,168.79,4.60706577]
[1641395795437,105.61426289,168.92,168.8,1.47846154]
[1641395795841,105.61426289,168.92,168.8,1.73846154]
[1641395796343,105.61426289,168.92,168.81,1.47846154]
[1641395796941,105.61426289,168.92,168.81,10.35856154]
[1641395797351,105.61426289,168.92,168.82,1.47846154]
[1641395799565,105.61426289,168.92,168.8,10.35906154]
[1641395800163,105.61426289,168.92,168.8,1.47846154]
[1641395800563,105.87426289,168.92,168.8,1.47846154]
[1641395800768,105.87426289,168.92,168.79,4.60706577]
[1641395800964,128.82436091,168.92,168.79,4.60706577]
[1641395801368,128.82436091,168.92,168.78,8.97498108]
[1641395801967,128.82436091,168.92,168.79,1.47846154]
[1641395802165,129.32436091,168.92,168.79,1.47846154]
[1641395802472,26.49036289,168.92,168.8,8.97498108]
[1641395802971,26.49036289,168.92,168.81,1.47846154]
[1641395805169,26.75036289,168.92,168.79,9.76386527]
[1641395805969,26.49036289,168.92,168.79,9.76386527]
[1641395806172,26.49036289,168.92,168.8,1.47846154]
[1641395807069,26.49036289,168.92,168.82,8.8795]
[1641395807474,26.49036289,168.92,168.83,2.43656353]
[1641395807872,26.49036289,168.92,168.84,1.47846154]
[1641395810977,26.49036289,168.92,168.84,15.42306154]
[1641395810978,0.06,168.92,168.84,15.42306154]
[1641395811178,0.06,168.92,168.84,6.54446154]
[1641395811378,0.06,168.92,168.85,1.47846154]
[1641395811577,0.06,168.92,168.85,1.73846154]
[1641395811977,0.06,168.92,168.86,1.47846154]
[1641395812181,0.06,168.92,168.86,10.35596154]
[1641395812777,100.2728,168.97,168.87,36.0]
[1641395812978,100.2728,168.97,168.86,10.35596154]
[1641395813178,100.2728,168.97,168.86,1.47846154]
[1641395813382,100.2728,168.97,168.83,2.43656353]
[1641395813677,127.35536639,168.97,168.83,2.43656353]
[1641395813878,2.6359593,168.96,168.84,1.18134088]
[1641395814479,22.8967,168.95,168.84,1.18134088]
[1641395814879,23.1567,168.95,168.84,1.18134088]
[1641395815278,23.6567,168.95,168.84,1.18134088]
[1641395816280,22.8967,168.95,168.84,1.18134088]
[1641395816684,23.3967,168.95,168.84,1.18134088]
[1641395816880,23.1567,168.95,168.84,1.18134088]
[1641395817082,22.8967,168.95,168.84,1.18134088]
[1641395817482,23.3967,168.95,168.84,1.18134088]
[1641395817687,22.8967,168.95,168.84,1.18134088]
[1641395818383,22.8967,168.95,168.82,8.8796]
[1641395818584,23.3967,168.95,168.82,8.8796]
[1641395818981,23.3967,168.95,168.82,9.1396]
[1641395819382,23.3967,168.95,168.82,1.67508445]
[1641395819583,23.6567,168.95,168.82,0.26]
[1641395819982,23.6567,168.95,168.79,9.0214]
[1641395820582,23.6567,168.95,168.8,1.33910011]
[1641395821187,23.6567,168.95,168.8,1.59910011]
[1641395822084,23.3967,168.95,168.8,1.59910011]
[1641395822285,23.3967,168.95,168.8,3.07756165]
[1641395822687,22.8967,168.95,168.8,3.07756165]
[1641395823083,23.3967,168.95,168.8,3.07756165]
[1641395823484,23.6567,168.95,168.8,3.07756165]
[1641395823884,23.3967,168.95,168.8,3.07756165]
[1641395824285,23.3967,168.95,168.8,27.19916165]
[1641395824987,23.6567,168.95,168.8,27.25916165]
[1641395825188,23.6567,168.95,168.8,36.13956165]
[1641395835224,23.3967,168.95,168.8,27.25916165]
[1641395835429,23.3967,168.95,168.81,8.8803]
[1641395835724,23.3967,168.95,168.82,1.47846154]
[1641395836226,22.8967,168.95,168.82,1.47846154]
[1641395836425,22.8967,168.95,168.82,10.61786154]
[1641395836828,22.8967,168.95,168.83,1.47846154]
[1641395837226,23.3967,168.95,168.83,1.47846154]
[1641395837426,23.3967,168.95,168.8,25.46070011]
[1641395837427,23.6567,168.95,168.8,25.46070011]
[1641395838829,23.6567,168.95,168.8,25.72070011]
[1641395840429,23.6567,168.95,168.8,27.19916165]
[1641395840632,23.6567,168.95,168.8,36.08006165]
[1641395840831,23.3967,168.95,168.8,27.19916165]
[1641395841830,23.6567,168.95,168.81,8.8803]
[1641395842031,23.3967,168.95,168.81,8.8803]
[1641395842232,23.3967,168.95,168.82,1.47846154]
[1641395842431,23.6567,168.95,168.82,1.47846154]
[1641395843030,23.3967,168.95,168.82,1.47846154]
[1641395843535,23.7167,168.95,168.8,25.72070011]
[1641395843735,23.7167,168.95,168.81,1.47846154]
[1641395844437,23.4567,168.95,168.81,10.61846154]
[1641395844636,23.7167,168.95,168.81,10.61846154]
[1641395844836,23.4567,168.95,168.82,1.47846154]
[1641395845637,23.7167,168.95,168.82,1.47846154]
[1641395845839,23.4567,168.95,168.82,1.47846154]
[1641395846237,23.7167,168.95,168.82,1.47846154]
[1641395846538,23.7167,168.95,168.81,9.1402]
[1641395846741,23.7167,168.95,168.81,10.61866154]
[1641395847341,23.7167,168.95,168.82,24.9138]
[1641395848143,23.4567,168.95,168.82,26.39226154]
[1641395848849,23.4567,168.95,168.82,35.27206154]
[1641395849243,23.4567,168.95,168.82,26.39226154]
[1641395850246,23.4567,168.95,168.83,0.06]
[1641395850648,23.4567,168.95,168.83,1.53846154]
[1641395851250,23.4567,168.95,168.83,1.79846154]
[1641395851851,23.4567,168.95,168.83,10.67776154]
[1641395852255,23.4567,168.95,168.83,1.53846154]
[1641395852450,23.7167,168.95,168.83,1.53846154]
[1641395852650,23.7167,168.95,168.83,0.06]
[1641395858060,23.4567,168.95,168.83,1.53846154]
[1641395859783,23.4567,168.95,168.84,8.8785]
[1641395860184,0.56,168.95,168.85,1.47846154]
[1641395860387,0.06,168.95,168.85,1.47846154]
[1641395860585,0.06,168.95,168.85,0.26]
[1641395861188,0.06,168.95,168.83,8.8793]
[1641395861385,23.5726,168.95,168.84,22.5713]
[1641395861787,24.3326,168.95,168.82,1.47846154]
[1641395863286,24.3326,168.95,168.82,25.57766154]
[1641395871194,32.14248348,168.77,168.76,0.06108499]
[1641395871396,38.20688342,168.77,168.76,0.06108499]
[1641395871794,85.20688342,168.77,168.76,0.06108499]
[1641395872194,40.94243358,168.77,168.76,0.06108499]
[1641395872394,37.0,168.76,168.69,375.22527832]
[1641395873594,37.0,168.76,168.69,371.15449602]
[1641395874195,37.0,168.76,168.68,2.40306561]
[1641395874497,37.0,168.76,168.66,12.37323137]
[1641395875496,32.14248348,168.77,168.67,2.15480275]
[1641395876297,32.14248348,168.77,168.67,2.41480275]
[1641395877327,32.14248348,168.77,168.67,2.15480275]
[1641395881604,32.40248348,168.77,168.67,2.15480275]
[1641395881803,2.47132854,168.76,168.67,2.15480275]
[1641395882303,2.47132854,168.76,168.66,8.8782]
[1641395882504,2.73132854,168.76,168.66,8.8782]
[1641395882902,34.85359962,168.76,168.66,8.8782]
[1641395883105,34.91359962,168.76,168.63,22.8046]
[1641395883305,34.91359962,168.76,168.64,2.25475808]
[1641395887111,3.29132854,168.76,168.64,2.25475808]
[1641395887311,3.03132854,168.76,168.64,2.25475808]
[1641395887611,26.57622854,168.76,168.64,2.25475808]
[1641395888411,2.53132854,168.76,168.64,2.25475808]
[1641395889815,27.32852854,168.76,168.64,2.25475808]
[1641395890415,27.82852854,168.76,168.64,2.25475808]
[1641395891817,27.82852854,168.76,168.67,0.49875743]
[1641395892014,27.82852854,168.76,168.67,2.8055255]
[1641395893038,27.82852854,168.76,168.67,0.49875743]
[1641395896946,28.08852854,168.76,168.67,0.49875743]
[1641395897745,103.41432854,168.76,168.67,0.49875743]
[1641395899949,103.15432854,168.76,168.67,0.49875743]
[1641395902652,103.41432854,168.76,168.67,0.49875743]
[1641395905056,110.53432854,168.76,168.67,0.49875743]
[1641395905257,83.0,168.75,168.58,33.328]
[1641395905458,48.55246948,168.74,168.58,33.328]
[1641395905857,49.31246948,168.74,168.58,33.328]
[1641395906256,2.89369249,168.73,168.59,2.53536359]
[1641395906460,0.06,168.72,168.59,2.53536359]
[1641395906659,24.406,168.72,168.59,2.53536359]
[1641395906863,24.906,168.72,168.59,2.53536359]
[1641395907058,25.166,168.72,168.59,2.53536359]
[1641395909767,25.166,168.72,168.57,9.0779]
[1641395909961,75.5245,168.71,168.55,112.2712083]
[1641395910163,0.06,168.7,168.55,121.3718083]
[1641395910763,23.3153,168.7,168.55,121.3718083]
[1641395910964,2.50514659,168.69,168.56,2.9259435]
[1641395911461,3.26514659,168.69,168.56,2.9259435]
[1641395912162,28.49806759,168.67,168.56,2.9259435]
[1641395912467,2.89433942,168.66,168.56,2.9259435]
[1641395912663,2.89433942,168.66,168.55,24.5677083]
[1641395912862,3.65433942,168.66,168.55,24.5677083]
[1641395913867,3.65433942,168.66,168.56,2.46200908]
[1641395916772,3.39433942,168.66,168.56,2.46200908]
[1641395918073,3.65433942,168.66,168.56,2.46200908]
[1641395918893,3.71433942,168.66,168.56,2.46200908]
[1641395920495,28.73690769,168.66,168.56,2.46200908]
[1641395920696,23.9413,168.65,168.56,2.46200908]
[1641395920895,0.06,168.64,168.56,2.46200908]
[1641395921097,2.56281613,168.63,168.56,2.46200908]
[1641395921498,3.32281613,168.63,168.56,2.46200908]
[1641395921900,2.82281613,168.63,168.56,2.46200908]
[1641395922699,2.56281613,168.63,168.56,2.46200908]
[1641395923199,23.9413,168.65,168.56,2.72200908]
[1641395923400,24.4413,168.65,168.56,2.72200908]
[1641395924600,24.7013,168.65,168.56,2.72200908]
[1641395924802,2.81998608,168.64,168.56,2.72200908]
[1641395925001,24.7013,168.65,168.56,2.72200908]
[1641395925002,24.4413,168.65,168.56,2.72200908]
[1641395925201,0.06,168.69,168.56,2.72200908]
[1641395925403,0.06,168.69,168.57,23.1019]
[1641395926000,2.56334043,168.68,168.57,23.1019]
[1641395926401,23.7208,168.7,168.57,23.1019]
[1641395926802,23.9808,168.7,168.57,23.1019]
[1641395927404,2.499036,168.69,168.57,23.1019]
[1641395927807,2.759036,168.69,168.57,23.1019]
[1641395928808,3.319036,168.69,168.57,23.1019]
[1641395929207,30.87033357,168.68,168.57,23.1019]
[1641395929408,31.37033357,168.68,168.57,23.1019]
[1641395929608,23.2982,168.67,168.57,23.1019]
[1641395929908,2.99630986,168.66,168.57,23.1019]
[1641395930408,3.25630986,168.66,168.57,23.1019]
[1641395931008,3.75630986,168.66,168.56,2.46200908]
[1641395932207,3.75630986,168.66,168.54,9.0888]
[1641395932711,23.1053,168.65,168.54,9.0888]
[1641395932908,23.6053,168.65,168.54,9.0888]
[1641395933109,23.8653,168.65,168.54,9.0888]
[1641395933609,23.8653,168.65,168.54,12.05005093]
[1641395936615,23.8653,168.65,168.51,79.1871]
[1641395936815,23.9253,168.65,168.51,79.1871]
[1641395937614,23.9253,168.65,168.5,23.5648]
[1641395937816,23.9253,168.65,168.49,2.63557056]
[1641395937817,30.7073,168.65,168.49,2.63557056]
[1641395938014,77.5679,168.64,168.49,2.63557056]
[1641395938217,2.76665019,168.63,168.49,2.63557056]
[1641395938418,3.26665019,168.63,168.49,2.63557056]
[1641395938615,3.52665019,168.63,168.49,2.63557056]
[1641395938817,30.81050854,168.62,168.49,2.63557056]
[1641395939016,0.06,168.61,168.49,2.63557056]
[1641395939216,2.97323576,168.6,168.49,2.63557056]
[1641395939417,0.06,168.59,168.49,2.63557056]
[1641395942324,0.06,168.59,168.37,88.95]
[1641395942523,124.3158,168.59,168.42,24.0412]
[1641395942922,125.0758,168.59,168.42,24.0412]
[1641395943324,125.0758,168.59,168.42,26.94886216]
[1641395943528,125.0758,168.59,168.42,2.90766216]
[1641395944723,132.1958,168.59,168.42,2.90766216]
[1641395944925,132.1958,168.59,168.42,3.16766216]
[1641395945524,132.1958,168.59,168.43,23.5831]
[1641395945724,1.47846154,168.58,168.42,2.90766216]
[1641395945924,2.49651651,168.57,168.42,2.90766216]
[1641395946324,3.25651651,168.57,168.42,2.90766216]
[1641395946524,3.25651651,168.57,168.42,6.82307106]
[1641395946724,3.25651651,168.57,168.43,24.1843]
[1641395947323,24.603,168.56,168.42,6.82307106]
[1641395947524,0.06,168.55,168.42,6.82307106]
[1641395947725,2.42816302,168.54,168.42,6.82307106]
[1641395947926,2.92816302,168.54,168.42,6.82307106]
[1641395948126,3.18816302,168.54,168.42,6.82307106]
[1641395948326,3.18816302,168.54,168.42,2.90766216]
[1641395948831,22.5829,168.53,168.42,26.73086216]
[1641395949026,22.8429,168.53,168.42,26.73086216]
[1641395949226,23.3429,168.53,168.42,26.73086216]
[1641395950829,22.8429,168.53,168.42,26.73086216]
[1641395951830,23.4029,168.53,168.42,26.73086216]
[1641395954233,0.56,168.53,168.42,26.73086216]
[1641395954432,0.06,168.53,168.42,26.73086216]
[1641395955237,3.0684106,168.53,168.42,26.73086216]
[1641395955437,3.0684106,168.53,168.42,26.47086216]
[1641395956245,0.06,168.53,168.42,26.47086216]
[1641395956445,0.06,168.59,168.42,26.47086216]
[1641395956646,0.06,168.59,168.42,30.96886216]
[1641395957845,2.83821551,168.58,168.42,30.96886216]
[1641395958047,2.83821551,168.58,168.42,26.47086216]
[1641395958048,3.09821551,168.58,168.42,26.47086216]
[1641395958244,3.59821551,168.58,168.42,26.47086216]
[1641395960466,3.33821551,168.58,168.42,26.47086216]
[1641395961669,3.59821551,168.58,168.42,26.47086216]
[1641395967277,3.59821551,168.58,168.42,26.73086216]
[1641395972481,3.59821551,168.58,168.43,8.54]
[1641395973080,3.59821551,168.58,168.45,2.6681331]
[1641395973279,3.59821551,168.58,168.46,8.54]
[1641395973480,3.33821551,168.58,168.46,8.54]
[1641395974479,3.33821551,168.58,168.45,2.6681331]
[1641395975085,3.59821551,168.58,168.45,2.6681331]
[1641395975488,0.06,168.57,168.45,2.6681331]
[1641395976288,8.6,168.57,168.41,8.54]
[1641395976488,31.4066,168.57,168.41,8.54]
[1641395976688,31.9066,168.57,168.41,8.54]
[1641395977294,31.9066,168.57,168.42,2.14533495]